Cogmind - Beta 11.1 @@@ ROGUE MODE // 2022.07.22 @ 19:04:41 Player: Rainynight Result: Self-destructed Performance ------------- Evolutions (6) 3000 Regions Visited (11) 2200 Robots Destroyed (55) 275 Value Destroyed (1122) 1122 Prototype IDs (26) 520 Alien Tech Used (0) 0 Bonus (300) 300 TOTAL SCORE: 7417 Bonus ------- Aligned with FarCom 300 Cogmind --------- Core Integrity 802/1150 Matter 203/300 Energy 48/300 System Corruption 4% Temperature Cool (0) Movement Hovering (94) Ox1 Location -4/Factory Parts ------- > --- POWER (1) -------- Angular Momentum Engine > --- PROPULSION (4) --- Cooled Gravmag System Cooled Gravmag System Improved Gyrokinetic Inverter > --- UTILITY (10) ----- Large Storage Unit Advanced Weight Redist. System Structural Scanner Advanced Sensor Array Improved Signal Interpreter Advanced ECM Suite Improved System Shield > --- WEAPON (4) ------- (None) > --- INVENTORY (15) --- Antimatter Reactor Large Matter Pod (150) Large Matter Pod (150) Improved Terrain Scanner Improved Transmission Jammer Advanced ECM Suite Improved Reaction Control System Layered Light Armor Plating Enhanced Gauss Cannon Heavy Missile Launcher Improved Remote Datajack Power Sword Power Sword Peak State ------------ > --- POWER ------------ Antimatter Reactor > --- PROPULSION ------- Flying Fortress v7 > --- UTILITY ---------- Large Storage Unit Structural Scanner Enhanced Optical Array Advanced Sensor Array Improved Signal Interpreter Improved Terrain Scanner Improved Terrain Scan Processor Advanced Transmission Jammer Advanced ECM Suite Improved System Shield > --- WEAPON ----------- Improved Datajack Advanced Datajack Power Sword Power Sword > --- INVENTORY -------- Angular Momentum Engine Cooled Gravmag System Cooled Gravmag System Improved Gyrokinetic Inverter Large Matter Pod Large Matter Pod Advanced Weight Redist. System Improved Transmission Jammer Advanced ECM Suite Improved Reaction Control System Layered Light Armor Plating Enhanced Gauss Cannon Heavy Missile Launcher Improved Remote Datajack Power Sword [Rating: 103] Favorites ----------- Power Angular Momentum Engine Engine Angular Momentum Engine Power Core Light Fission Core Reactor Antimatter Reactor Propulsion Flying Fortress v7 Treads Light Treads Leg Aluminum Leg Wheel Wheel Hover Unit Cooled Gravmag System Flight Unit Flying Fortress v7 Utility Large Storage Unit Device Heat Sink Storage Large Storage Unit Processor Improved Terrain Scan Processor Hackware System Shield Protection Light Armor Plating Weapon Chainsword Energy Gun Small Laser Ballistic Gun Assault Rifle Ballistic Cannon Light Cannon Launcher Heavy Missile Launcher Special Weapon Improved Remote Datajack Slashing Weapon Chainsword Special Melee Weapon Improved Datajack Build | -11 -10 -10 -9 -9 -9 -8 -8 -7 -6 -5 -4 ------- Run | Scr Mat Min Mat Min Exi Min Mat Fac Fac Fac Fac Slots Evolved 12 | . . . 2 . . . 2 2 2 2 2 Power . | . . . . . . . . . . . . Propulsion 2 | . . . . . . . 2 . . . . Utility 8 | . . . . . . . . 2 2 2 2 Weapon 2 | . . . 2 . . . . . . . . Parts Attached 114 | . 17 1 10 . . . 2 10 52 10 12 Power 11 | . 4 . 1 . . . 1 1 1 1 2 Engine 8 | . 3 . 1 . . . 1 1 1 . 1 Core 2 | . 1 . . . . . . . . 1 . Reactor 1 | . . . . . . . . . . . 1 Propulsion 14 | . 4 1 5 . . . 1 . . . 3 Treads 4 | . 2 . 2 . . . . . . . . Leg . | . . . . . . . . . . . . Wheel 6 | . 2 1 3 . . . . . . . . Hover 3 | . . . . . . . . . . . 3 Flight 1 | . . . . . . . 1 . . . . Utility 57 | . 5 . 2 . . . . 4 35 5 6 Device 40 | . . . 2 . . . . . 29 4 5 Storage 2 | . 2 . . . . . . . . . . Processor 8 | . . . . . . . . 3 3 1 1 Hackware 3 | . . . . . . . . 1 2 . . Protection 4 | . 3 . . . . . . . 1 . . Artifact . | . . . . . . . . . . . . Weapon 32 | . 4 . 2 . . . . 5 16 4 1 Energy Gun . | . . . . . . . . . . . . Energy Cannon . | . . . . . . . . . . . . Ballistic Gun 5 | . 1 . 2 . . . . 2 . . . Ballistic Cannon 7 | . 3 . . . . . . 2 1 1 . Launcher 3 | . . . . . . . . . 3 . . Special Weapon 1 | . . . . . . . . . . 1 . Impact Weapon . | . . . . . . . . . . . . Slashing Weapon 10 | . . . . . . . . 1 7 2 . Piercing Weapon . | . . . . . . . . . . . . Special Melee Weapon 6 | . . . . . . . . . 5 . 1 Unidentified Prototypes 1 | . . . . . . . . . . . 1 Parts Lost 9 | . . . 2 . . . . . 1 . 6 Power . | . . . . . . . . . . . . Propulsion 2 | . . . 1 . . . . . . . 1 Utility 5 | . . . 1 . . . . . 1 . 3 Weapon 2 | . . . . . . . . . . . 2 Highest Loss Streak 6 | . . . 1 . . . . . 1 . 6 To Critical Strikes . | . . . . . . . . . . . . Average Slot Usage (%) 85 | . 96 100 99 100 100 100 72 76 79 82 83 Engine 7 | . 13 14 11 11 11 11 9 7 6 3 . Treads 3 | . 12 14 12 11 11 11 . . . . . Wheel 3 | . 11 14 9 11 11 11 . . . . . Flight 4 | . . . . . . . 8 7 6 5 4 Device 9 | . . . 5 11 11 11 9 7 6 17 24 Storage 7 | . 14 14 11 11 11 11 9 7 6 5 5 Processor 8 | . . . . . . . . 8 12 15 16 Hackware 6 | . . . . . . . . 5 12 6 5 Protection 1 | . 12 14 5 . . . . . . . . Ballistic Gun 6 | . 2 . 22 22 22 22 18 9 . . . Ballistic Cannon 10 | . 20 28 22 22 22 22 18 13 2 . 4 Slashing Weapon 8 | . . . . . . . . 5 18 11 9 Special Melee Weapon 2 | . . . . . . . . . 4 5 4 Naked Turns . | . . . . . . . . . . . . Heaviest Build 50 | 11 34 34 38 38 38 38 38 49 50 48 50 Greatest Support 50 | 20 20 16 40 10 10 10 50 50 50 50 50 Greatest Overweight (x) 11 | . 11 3 3 3 3 3 3 . . . 1 Average Overweight (x) . | . 1 2 2 3 3 3 . . . . . Largest Inventory Capacity 15 | . 15 15 15 15 15 15 15 15 15 15 15 Average Capacity 14 | . 12 15 15 15 15 15 15 15 15 15 15 Most Carried 15 | . 15 15 15 15 15 15 15 15 15 15 15 Average Carried 14 | . 11 15 14 14 14 15 13 14 14 14 13 Final Capacity 15 | 8 15 15 15 15 15 15 15 15 15 15 15 Final Carried 15 | 6 15 15 15 15 15 15 15 13 14 15 13 Class Distribution -------------------- 26% | Hacker-Scout 22% | Mutant 18% | Gunner 16% | Infiltrator-Ninja 5% | Hacker-Mutant 4% | Skirmisher Dominant Class ---------------- Mutant | -10/Materials Mutant | -10/Mines Gunner | -9/Materials Gunner | -9/Mines Gunner | -9/Exiles Skirmisher | -8/Mines Skirmisher | -8/Materials Mutant | -7/Factory Hacker-Scout | -6/Factory Infiltrator-Ninja | -5/Factory Infiltrator-Ninja | -4/Factory Resources | -11 -10 -10 -9 -9 -9 -8 -8 -7 -6 -5 -4 ----------- Run | Scr Mat Min Mat Min Exi Min Mat Fac Fac Fac Fac Matter Collected 2945 | 200 279 425 291 139 34 . 39 316 620 426 176 Remotely . | . . . . . . . . . . . . Salvage Created 2827 | . 365 108 251 111 . . 35 31 1067 451 408 Parts 138 | . 14 11 20 8 . . 5 7 41 22 10 Haulers Intercepted 3 | . 1 . . . . . . . 1 1 . Recyclers Shooed 4 | . . . . . . . . . 2 . 2 Parts Field Recycled . | . . . . . . . . . . . . Retrieved Matter . | . . . . . . . . . . . . Parts Self-Destructed . | . . . . . . . . . . . . Prevented . | . . . . . . . . . . . . Kills | -11 -10 -10 -9 -9 -9 -8 -8 -7 -6 -5 -4 ------- Run | Scr Mat Min Mat Min Exi Min Mat Fac Fac Fac Fac Combat Hostiles Destroyed 23 | . 4 3 7 3 . . . . 4 1 1 Guns 2 | . . . 2 . . . . . . . . Cannons 17 | . 4 3 5 3 . . . . . 1 1 AOE 4 | . . . . . . . . . 4 . . Classes Destroyed 14 | . 5 1 1 1 . . 2 1 1 1 1 Worker 4 | . 1 1 . 2 . . . . . . . Builder 3 | . . . . . . . . 2 . 1 . Tunneler 1 | . . . . . . . . . . 1 . Hauler 3 | . 1 . . . . . . . 1 1 . Recycler 15 | . 2 1 . . . . . . 7 2 3 Mechanic 1 | . 1 . . . . . . . . . . Operator 2 | . . . . . . . 1 . 1 . . Watcher 3 | . . . . . . . 1 . 2 . . Swarmer 3 | . . 3 . . . . . . . . . Cutter 4 | . . . . . . . . . 4 . . Grunt 12 | . 4 . 6 2 . . . . . . . Duelist 1 | . . . . 1 . . . . . . . Sentry 2 | . . . 1 . . . . . . 1 . Programmer 1 | . . . . . . . . . . . 1 Best Kill Streak 4 | . 4 4 4 3 . . 2 1 4 1 3 Combat Bots Only 4 | . 3 3 4 3 . . . . 4 1 1 Max Kills in Single Turn 2 | . 1 1 1 1 . . 1 1 2 1 1 Gunslinging . | . . . . . . . . . . . . Exploded 2 | . . . . . . . . . 2 . . Melee . | . . . . . . . . . . . . Uniques/NPCs Destroyed . | . . . . . . . . . . . . Combat | -11 -10 -10 -9 -9 -9 -8 -8 -7 -6 -5 -4 -------- Run | Scr Mat Min Mat Min Exi Min Mat Fac Fac Fac Fac Damage Taken 2752 | . 200 56 224 43 . 3 . 99 709 . 1418 Core 512 | . 15 13 25 . . . . . 111 . 348 Absorbed by Shields . | . . . . . . . . . . . . Core Remaining (%) 95 | 100 . 88 . . . 93 100 100 86 100 . Volleys Fired 116 | . 24 12 16 7 . . 8 1 8 17 23 Largest 4 | . 2 2 4 4 . . 4 2 1 1 1 Hottest 110 | . 70 70 110 110 . . 110 96 48 57 57 Shots Fired 247 | . 48 24 64 28 . . 32 2 8 17 24 Gun 62 | . . . 32 14 . . 16 . . . . Cannon 166 | . 48 24 32 14 . . 16 2 4 2 24 Launcher 4 | . . . . . . . . . 4 . . Special 15 | . . . . . . . . . . 15 . Kinetic 228 | . 48 24 64 28 . . 32 2 4 2 24 Thermal . | . . . . . . . . . . . . Explosive 4 | . . . . . . . . . 4 . . Electromagnetic . | . . . . . . . . . . . . Robot Hit Streak 20 | . 8 10 9 20 . . 8 . 4 11 4 Robot Miss Streak 4 | . 3 3 2 3 . . 4 . 2 1 4 Penetration Max 1 | . . . . . . . . . . . 1 Secondary Targets . | . . . . . . . . . . . . Shots Hit Robots 223 | . 30 13 42 20 . . 12 2 42 39 23 Core Hits 67 | . 10 5 14 7 . 1 4 2 15 5 4 Critical Kills . | . . . . . . . . . . . . Critical Parts Destroyed . | . . . . . . . . . . . . Critical Strikes 6 | . 2 . 1 . . . 1 . . 1 1 Blast 5 | . 2 . 1 . . . 1 . . . 1 Sever 1 | . . . . . . . . . . 1 . Melee Attacks 177 | . . . . . . . . 16 109 31 21 Impact . | . . . . . . . . . . . . Slashing 135 | . . . . . . . . 16 93 13 13 Piercing . | . . . . . . . . . . . . Sneak Attacks 62 | . . . . . . . . 2 24 24 12 Combat Hostiles 4 | . . . . . . . . . 4 . . Follow-up Attacks 5 | . . . . . . . . . 3 1 1 Damage Inflicted 5119 | . 539 233 653 288 . 6 185 134 1548 690 843 Guns 533 | . . . 316 133 . . 84 . . . . Cannons 1921 | . 539 233 327 155 . . 101 . 84 76 406 Explosions 319 | . . . . . . . . . 319 . . Melee 2330 | . . . . . . . . 134 1145 614 437 Ramming 16 | . . . 10 . . 6 . . . . . Kinetic 2454 | . 539 233 643 288 . . 185 . 84 76 406 Thermal . | . . . . . . . . . . . . Explosive 319 | . . . . . . . . . 319 . . Electromagnetic . | . . . . . . . . . . . . Impact . | . . . . . . . . . . . . Slashing 2330 | . . . . . . . . 134 1145 614 437 Piercing . | . . . . . . . . . . . . Highest Corruption 4 | . 1 1 . . . . . . . . 4 Average Corruption 1 | . 1 1 . . . . . . . . 1 Corruption Purged . | . . . . . . . . . . . . Corruption Blocked . | . . . . . . . . . . . . Effects 8 | . 1 1 . . . . . . . . 6 Matter Fused 3 | . . 1 . . . . . . . . 2 Heat Flow Errors 2 | . 1 . . . . . . . . . 1 Energy Discharges 2 | . . . . . . . . . . . 2 Misfires 1 | . . . . . . . . . . . 1 Overload Shots . | . . . . . . . . . . . . Overflow Damage 649 | . 8 6 . 1 . . . . 270 155 209 Projectiles 54 | . 8 6 . 1 . . . . 18 . 21 Explosions 14 | . . . . . . . . . 14 . . Melee 581 | . . . . . . . . . 238 155 188 Knockbacks 22 | . 5 2 7 4 . . 1 . 1 . 2 Impact . | . . . . . . . . . . . . Kinetic 21 | . 5 2 6 4 . . 1 . 1 . 2 Secondary 1 | . . . 1 . . . . . . . . Self-Inflicted Damage 162 | . . . . . . 3 . . 159 . . Shots 4 | . . . . . . . . . 4 . . Rammed 3 | . . . 1 . . 1 . . 1 . . Targets Rammed 3 | . . . 1 . . 1 . . 1 . . Kicked . | . . . . . . . . . . . . Crushed . | . . . . . . . . . . . . Highest Temperature 349 | . 298 162 349 24 . . 92 7 16 7 219 Average Temperature 71 | . 78 65 122 13 . . 40 5 7 4 35 Received Heat Transfer 321 | . 87 . 111 6 . . . 6 18 . 93 Effects 2 | . . . 2 . . . . . . . . Interference 1 | . . . 1 . . . . . . . . Damage (minor) 1 | . . . 1 . . . . . . . . Siege Activations . | . . . . . . . . . . . . Robots Corrupted . | . . . . . . . . . . . . Combat Hostiles . | . . . . . . . . . . . . Parts Fried . | . . . . . . . . . . . . Impact Corruptions . | . . . . . . . . . . . . Robots Melted . | . . . . . . . . . . . . Combat Hostiles . | . . . . . . . . . . . . Parts Melted . | . . . . . . . . . . . . Heat Transferred . | . . . . . . . . . . . . Parts Sabotaged . | . . . . . . . . . . . . Parts Stolen . | . . . . . . . . . . . . Parts Stripped . | . . . . . . . . . . . . Power Chain Reactions . | . . . . . . . . . . . . Missiles Intercepted . | . . . . . . . . . . . . Alert | -11 -10 -10 -9 -9 -9 -8 -8 -7 -6 -5 -4 ------- Run | Scr Mat Min Mat Min Exi Min Mat Fac Fac Fac Fac Peak Influence 241 | . 219 180 241 193 . . 72 102 210 104 187 Initial 102 | . . 85 70 93 . . . 32 16 102 28 Average 72 | . 95 101 148 164 . . 25 37 56 46 89 Maximum Alert Level 1 | . 1 . 1 . . . . . 1 . . Low Security (%) 96 | . 93 100 62 100 . 100 100 100 98 100 100 Level 1 3 | . 6 . 37 . . . . . 1 . . Level 2 . | . . . . . . . . . . . . Level 3 . | . . . . . . . . . . . . Level 4 . | . . . . . . . . . . . . Level 5 . | . . . . . . . . . . . . High Security . | . . . . . . . . . . . . Max Security . | . . . . . . . . . . . . Squads Dispatched 24 | . 1 . 1 . . . . 2 16 . 4 Investigation 10 | . 1 . 1 . . . . 1 6 . 1 Extermination 4 | . . . . . . . . . 3 . 1 Reinforcement 7 | . . . . . . . . 1 4 . 2 Assault . | . . . . . . . . . . . . Garrison 3 | . . . . . . . . . 3 . . Intercept . | . . . . . . . . . . . . Searches Triggered . | . . . . . . . . . . . . Construction Impeded . | . . . . . . . . . . . . Haulers Reinforced . | . . . . . . . . . . . . Active Scanning Responses . | . . . . . . . . . . . . Cargo Convoy Interrupts 1 | . . . . . . . . . 1 . . Stealth | -11 -10 -10 -9 -9 -9 -8 -8 -7 -6 -5 -4 --------- Run | Scr Mat Min Mat Min Exi Min Mat Fac Fac Fac Fac Distress Signals 6 | . 2 . . . . . 1 1 . 1 1 Communications Jammed 12 | . . . . . . . . . . 5 7 Distress Signals 12 | . . . . . . . . . . 5 7 Times Spotted 96 | . 12 4 11 3 . . 3 11 30 6 16 Peak Tracking Total 11 | . 4 3 5 3 . . 4 4 4 3 11 Tactical Retreats 21 | . 1 1 . . . . 1 2 12 . 4 Traps | -11 -10 -10 -9 -9 -9 -8 -8 -7 -6 -5 -4 ------- Run | Scr Mat Min Mat Min Exi Min Mat Fac Fac Fac Fac Traps Triggered 7 | . 2 . . . . . . . 2 . 3 Indirectly . | . . . . . . . . . . . . Trap Hack Attempts 40 | . . . . . . . . . 32 8 . Triggered . | . . . . . . . . . . . . Disarmed 1 | . . . . . . . . . . 1 . Reprogrammed 5 | . . . . . . . . . 4 1 . Reused 1 | . . . . . . . . . 1 . . Traps Extracted . | . . . . . . . . . . . . Installed . | . . . . . . . . . . . . Triggered 3 | . . . . . . . . . 3 . . Exploded 3 | . . . . . . . . 3 . . . Machines | -11 -10 -10 -9 -9 -9 -8 -8 -7 -6 -5 -4 ---------- Run | Scr Mat Min Mat Min Exi Min Mat Fac Fac Fac Fac Machines Disabled 4 | . . . . 1 . . 1 . . . 2 Max in Single Turn 1 | . . . . 1 . . 1 . . . 1 Machines Sabotaged . | . . . . . . . . . . . . Garrisons Compromised . | . . . . . . . . . . . . Overloaded Fab Kills . | . . . . . . . . . . . . Hacking | -11 -10 -10 -9 -9 -9 -8 -8 -7 -6 -5 -4 --------- Run | Scr Mat Min Mat Min Exi Min Mat Fac Fac Fac Fac Machines Accessed 47 | . 6 . 3 1 3 . 1 6 19 6 2 Terminals 26 | . 4 . 3 1 . . 1 1 11 3 2 Fabricators 6 | . . . . . . . . 2 3 1 . Repair Stations . | . . . . . . . . . . . . Recycling Units 9 | . 2 . . . . . . 1 4 2 . Scanalyzers 1 | . . . . . . . . 1 . . . Garrison Access 2 | . . . . . . . . 1 1 . . Total Hacks 165 | . 17 . 5 1 33 . 1 13 65 23 7 Successful 87 | . 11 . 3 1 33 . . 6 21 9 3 Failed 78 | . 6 . 2 . . . 1 7 44 14 4 Catastrophic 15 | . . . . . . . . 2 11 2 . Database Lockouts . | . . . . . . . . . . . . Manual 99 | . 13 . 7 . 1 . 1 8 46 18 5 Terminals 84 | . 14 . 5 1 . . 1 1 38 17 7 Fabricators 19 | . . . . . . . . 6 11 2 . Repair Stations . | . . . . . . . . . . . . Recycling Units 18 | . 3 . . . . . . 2 9 4 . Scanalyzers 2 | . . . . . . . . 2 . . . Garrison Access 9 | . . . . . . . . 2 7 . . Terminal Hacks 49 | . 4 . . 1 33 . . . 7 2 2 Record 32 | . . . . . 32 . . . . . . Robot Analysis 3 | . 2 . . . . . . . . 1 . Prototype ID Bank 1 | . . . . . . . . . 1 . . Open DSF 1 | . . . . . . . . . 1 . . Level Access Points 1 | . . . . . . . . . . . 1 Emergency Access Points 1 | . . . . . . . . . 1 . . Unreport Threat 4 | . . . . . . . . . 2 1 1 Locate Traps 2 | . 2 . . . . . . . . . . Dispatch Records 1 | . . . . . . . . . 1 . . Zone Layout 2 | . . . . 1 . . . . 1 . . EX-Prototype ID Bank 1 | . . . . . 1 . . . . . . Fabricator Hacks . | . . . . . . . . . . . . Repair Station Hacks . | . . . . . . . . . . . . Recycling Unit Hacks 11 | . 2 . . . . . . 1 5 3 . Report Inventory 9 | . 2 . . . . . . 1 4 2 . Retrieve Matter 1 | . . . . . . . . . . 1 . Retrieve Components 1 | . . . . . . . . . 1 . . Scanalyzer 2 | . . . . . . . . 2 . . . Insert Component 1 | . . . . . . . . 1 . . . Analyze 1 | . . . . . . . . 1 . . . Garrison Access Hacks . | . . . . . . . . . . . . Unauthorized Hacks 25 | . 5 . 3 . . . . 3 9 4 1 Terminals 17 | . 4 . 3 . . . . . 6 3 1 Track 13 | . 4 . 2 . . . . . 5 1 1 Assimilate 1 | . . . . . . . . . . 1 . Botnet 3 | . . . 1 . . . . . 1 1 . Fabricators 2 | . . . . . . . . 2 . . . Fabnet 2 | . . . . . . . . 2 . . . Repair Stations . | . . . . . . . . . . . . Recycling Units 6 | . 1 . . . . . . 1 3 1 . Monitor 2 | . . . . . . . . . 2 . . Reject 3 | . 1 . . . . . . 1 . 1 . Recyclers 1 | . . . . . . . . . 1 . . Scanalyzers . | . . . . . . . . . . . . Garrison Access . | . . . . . . . . . . . . Data Cores Recovered 1 | . . . . . . . . . 1 . . Used 1 | . . . . . . . . . 1 . . Hacking Detections 34 | . 4 . 2 1 . . . 6 14 5 2 Full Trace Events 11 | . 2 . 1 . . . . 1 6 . 1 Feedback Events 1 | . 1 . . . . . . . . . . Corruption 1 | . 1 . . . . . . . . . . Feedback Blocked . | . . . . . . . . . . . . Robot Schematics Acquired . | . . . . . . . . . . . . Robots Built . | . . . . . . . . . . . . Authchips . | . . . . . . . . . . . . Time . | . . . . . . . . . . . . Total Robot Build Rating . | . . . . . . . . . . . . Part Schematics Acquired 1 | . . . . . . . . 1 . . . Parts Built . | . . . . . . . . . . . . Authchips . | . . . . . . . . . . . . Time . | . . . . . . . . . . . . Total Part Build Rating . | . . . . . . . . . . . . Parts Repaired . | . . . . . . . . . . . . Time . | . . . . . . . . . . . . Parts Recycled . | . . . . . . . . . . . . Recycled Matter . | . . . . . . . . . . . . Retrieved Matter 36 | . . . . . . . . . . 36 . Retrieved Components 2 | . . . . . . . . . 2 . . Parts Scanalyzed 1 | . . . . . . . . 1 . . . Part Schematics Acquired 1 | . . . . . . . . 1 . . . Parts Damaged . | . . . . . . . . . . . . Bothacking | -11 -10 -10 -9 -9 -9 -8 -8 -7 -6 -5 -4 ------------ Run | Scr Mat Min Mat Min Exi Min Mat Fac Fac Fac Fac Used RIF Installer . | . . . . . . . . . . . . Robots Hacked 41 | . . . . . . . . . 13 22 6 Non-combat 40 | . . . . . . . . . 12 22 6 Combat 1 | . . . . . . . . . 1 . . Robot Hacks Applied 49 | . . . . . . . . . 12 29 8 parse_system 3 | . . . . . . . . . 1 2 . no_distress 38 | . . . . . . . . . 11 21 6 find_chute 5 | . . . . . . . . . . 3 2 find_fabricator 1 | . . . . . . . . . . 1 . find_recycling 1 | . . . . . . . . . . 1 . check_alert 1 | . . . . . . . . . . 1 . Relay Couplers Released . | . . . . . . . . . . . . Fabnet Peak Effective % 6 | . . . . . . . . . 6 2 . Autooverrided 1 | . . . . . . . . . 1 . . Robots Rewired 2 | . . . . . . . . . 2 . . Allies Hacked . | . . . . . . . . . . . . Hacks Repelled . | . . . . . . . . . . . . Allies | -11 -10 -10 -9 -9 -9 -8 -8 -7 -6 -5 -4 -------- Run | Scr Mat Min Mat Min Exi Min Mat Fac Fac Fac Fac Total Allies 4 | . . . . . . . . . 3 1 . Largest Group 2 | . . . . . . . . . 2 1 . Highest-Rated Group 52 | . . . . . . . . . 52 26 . Highest-Rated Ally 40 | . . . . . . . . . 40 26 . Total Orders . | . . . . . . . . . . . . Ally Attacks 7 | . . . . . . . . . 7 . . Total Damage 182 | . . . . . . . . . 182 . . Kills . | . . . . . . . . . . . . Allies Corrupted . | . . . . . . . . . . . . Allies Melted . | . . . . . . . . . . . . Intel | -11 -10 -10 -9 -9 -9 -8 -8 -7 -6 -5 -4 ------- Run | Scr Mat Min Mat Min Exi Min Mat Fac Fac Fac Fac Robot Analysis Total 3 | . 2 . . . . . . . . 1 . Derelict Logs Recovered 4 | . . 2 . 2 . . . . . . . Drone Launches . | . . . . . . . . . . . . Drone Recoveries . | . . . . . . . . . . . . Exploration | -11 -10 -10 -9 -9 -9 -8 -8 -7 -6 -5 -4 ------------- Run | Scr Mat Min Mat Min Exi Min Mat Fac Fac Fac Fac Turns Passed 5992 | . 387 254 365 372 423 95 170 760 1983 587 596 Spaces Moved 6261 | 1 218 166 216 277 333 76 194 752 2534 804 690 Core 2 | . 2 . . . . . . . . . . Treads 4 | . . . 4 . . . . . . . . Legs 22 | 1 21 . . . . . . . . . . Wheels 1261 | . 195 166 212 277 333 76 2 . . . . Hover 2 | . . . . . . . . . . . 2 Flight 4970 | . . . . . . . 192 752 2534 804 688 Fastest Speed 50 | 120 100 125 125 125 125 125 50 50 50 50 50 Average Speed 65 | 120 122 129 127 125 125 125 50 50 50 50 50 Slowest Speed 600 | 120 600 130 240 125 125 125 125 50 50 50 94 Overloaded Moves . | . . . . . . . . . . . . Propulsion Burnouts . | . . . . . . . . . . . . Robots Hopped 40 | . . . . . . . 4 3 28 4 1 Cave-ins Triggered . | . . . . . . . . . . . . Exploration Rate (%) 34 | 2 48 42 24 60 76 17 23 21 60 23 21 Regions Visited 11 Branch Regions 4 Pre-discovered Areas 1 | . . . . . 1 . . . . . . Known Exits Taken 4 | . . 1 . . . . 1 . 1 1 . Unknown Exits Taken 7 | 1 1 . 1 1 1 1 . 1 . . . Scrap Searched . | . . . . . . . . . . . . Spaces Dug 76 | . . . . . . . . 12 54 1 9 Terrain Destroyed 120 | . . . . . . . . 12 89 1 18 Melee 59 | . . . . . . . . 12 41 1 5 Projectile 15 | . . . . . . . . . 2 . 13 AOE 46 | . . . . . . . . . 46 . . Terrain Rammed . | . . . . . . . . . . . . Walls Destroyed . | . . . . . . . . . . . . Machines Disabled . | . . . . . . . . . . . . Actions | -11 -10 -10 -9 -9 -9 -8 -8 -7 -6 -5 -4 --------- Run | Scr Mat Min Mat Min Exi Min Mat Fac Fac Fac Fac Total 7754 | . 289 184 263 289 343 76 243 1114 3084 968 901 Wait 918 | . 4 1 15 . . . 33 307 342 88 128 Move 6174 | . 217 165 215 276 332 75 187 745 2479 795 688 Hop 36 | . . . . . . . 2 3 26 4 1 Pick Up 73 | . 14 2 2 3 4 . 6 14 15 8 5 Fast Attach 22 | . 9 1 3 . . . . 3 3 2 1 Attach 21 | . 3 . 2 . . . 1 2 5 2 6 Detach 7 | . 1 . 1 . . . . . 2 1 2 Swap 71 | . 5 . 5 . . . 1 5 44 6 5 Drop 79 | . 12 3 3 3 7 . 5 18 13 9 6 Fire 116 | . 24 12 16 7 . . 8 1 8 17 23 Melee 146 | . . . . . . . . 16 84 28 18 Ram 2 | . . . . . . 1 . . 1 . . Kick . | . . . . . . . . . . . . Crush 1 | . . . 1 . . . . . . . . Escape Stasis 48 | . . . . . . . . . 30 . 18 Rewire . | . . . . . . . . . . . . Trap 40 | . . . . . . . . . 32 8 . Miscellaneous . | . . . . . . . . . . . . Route ------- -11/Scrapyard -10/Materials (discovered 3 exits: *Mat / [*Min x2]) -10/Mines -9/Materials -9/Mines (discovered 3 exits: *Mat x2 / *Exi) -9/Exiles -8/Mines -8/Materials (discovered 3 exits: *Fac x3) -7/Factory -6/Factory (discovered 4 exits: *Fac / *Low x2 / *Ext) -5/Factory -4/Factory (discovered 4 exits: Res x4) History --------- Turn | Location | Event 1 | -11/Scrapyard | Discovered new exit (range 0) 1 | -11/Scrapyard | Entered Materials 177 | -10/Materials | Discovered new exit (range 12) 274 | -10/Materials | Discovered new exit (range 4) 292 | -10/Materials | Discovered new exit (range 16) 301 | -10/Materials | Build established: Mutant 388 | -10/Materials | Entered Mines 395 | -10/Mines | Received a Rocket Launcher from a helpful Derelict 474 | -10/Mines | Identified exit to Materials 519 | -10/Mines | Learned Materials terminal intel 642 | -10/Mines | Entered Materials 642 | -9/Materials | Evolved 2 slots: Weapon x2 643 | -9/Materials | Loaded intel: 12 terminal locations 985 | -9/Materials | Discovered new exit (range 11) 1007 | -9/Materials | Entered Mines 1084 | -9/Mines | Learned location of 1 exit from Materials 1097 | -9/Mines | Build established: Gunner 1099 | -9/Mines | Learned 4 Materials zone layouts 1343 | -9/Mines | Discovered new exit (range 9) 1359 | -9/Mines | Discovered new exit (range 6) 1374 | -9/Mines | Deemed a non-threat by the Exiles lab entrance 1374 | -9/Mines | Discovered new exit (range 5) 1379 | -9/Mines | Entered Exiles 1416 | -9/Exiles | Met 8R-AWN 1436 | -9/Exiles | Met EX-HEX 1471 | -9/Exiles | Met EX-BIN 1494 | -9/Exiles | Aligned with FarCom system 1495 | -9/Exiles | Given EX-Vault access code 1524 | -9/Exiles | Opened EX-Vault 1540 | -9/Exiles | Found Flying Fortress v7 1566 | -9/Exiles | Warned to stay clear of 0b10 Research branches 1602 | -9/Exiles | Met EX-DEC 1611 | -9/Exiles | Learned location of Zion (-7) 1667 | -9/Exiles | Visited The Gauntlet 1788 | -9/Exiles | Discovered new exit (range 10) 1802 | -9/Exiles | Left Exiles lab with Flying Fortress v7 1802 | -9/Exiles | Entered Mines 1886 | -8/Mines | Discovered new exit (range 8) 1897 | -8/Mines | Entered Materials 1897 | -8/Materials | Evolved 2 slots: Propulsion x2 1898 | -8/Materials | Identified exit to Factory 2067 | -8/Materials | Entered Factory 2067 | -7/Factory | Evolved 2 slots: Utility x2 2409 | -7/Factory | Discovered new exit (range 15) 2475 | -7/Factory | Build established: Mutant 2827 | -7/Factory | Entered another Factory area 2827 | -6/Factory | Evolved 2 slots: Utility x2 2951 | -6/Factory | Discovered new exit (range 14) 3000 | -6/Factory | Identified exit to Extension 3045 | -6/Factory | Discovered new exit (range 14) 3053 | -6/Factory | Identified exit to Lower Caves 3841 | -6/Factory | Cargo convoy interrupted 3865 | -6/Factory | Build established: Hacker-Scout 3936 | -6/Factory | Discovered exit to Lower Caves (range 12) 4689 | -6/Factory | Discovered new exit (range 15) 4797 | -6/Factory | Identified exit to Factory 4810 | -6/Factory | Entered another Factory area 4810 | -5/Factory | Evolved 2 slots: Utility x2 5296 | -5/Factory | Build established: Infiltrator-Ninja 5359 | -5/Factory | Discovered new exit (range 22) 5382 | -5/Factory | Identified exit to Factory 5397 | -5/Factory | Entered another Factory area 5397 | -4/Factory | Evolved 2 slots: Utility x2 5903 | -4/Factory | Identified exit to Research 5993 | -4/Factory | Self-destructed Last Messages --------------- 05967_ Dropped Imp. Datajack. 05973_ C-30 ARC bursts open, deploying its payload. 05973_ S-27 Virus unfolds itself. 05976_ Flying Fortress v7 destroyed. 05976_ W-44 Eye distress signal jammed. 05976_ Identified Cld. Gravmag System. 05977_ W-44 Eye distress signal jammed. 05978_ K-01 Serf collects debris. 05978_ W-44 Eye distress signal jammed. 05981_ K-01 Serf collects debris. 05982_ W-44 Eye distress signal jammed. 05984_ K-01 Serf collects debris. 05986_ Critical hit (Burn: +37). 05987_ Adv. Datajack destroyed. 05987_ K-01 Serf collects debris. 05988_ Adv. Transmission Jammer destroyed. 05988_ Imp. Terrain Scan Processor destroyed. 05990_ System corrupted: Matter fused (-7). 05991_ Power Sword destroyed. 05991_ Enh. Optical Array destroyed. Map ----- +----------------------------------------------------+ | ??#??## ######?? ?? ?????????????????????????????? | | ??#??## T##?#????????????????????????????????????? | | ?????## ##??????????????????????????????????????? | | ?##??## ###???#??##??????????????????????????????? | | ?????## ###??#?? ????????????????????????????????? | | ? ??? # ##???#?? ##?#????????????????????????????? | | ???"? # ##???##? ##?#?????????????? # ?????? | | ???"? # ######## ###???????????????#+#######?????? | | ???? # ########+###??????????????? ?????? | | ???? # ## # ?????????????? ??????? | | ???"# ## # ?????????????? ??????? | | ????"# ## # ?"??????????? ????????? | | ????"# ## # ????????????? ??????????? | | ??? T# ##/ # ? # ##??????????? | | ?? ?"# ## ! #+##?####+#### A ##??????????? | | ??? "# ## ! # ##?## # ??????????? | | ??"# ## =# ##?## % k # ??????????? | | ? # ## # ##### s # ??????????? | | ####?## ##+#####+## ##### # ??????????? | | ##?## s s # ??????????? | | ##### ##### ######## p s # ??????????? | | ##?## #### #######sp # ??????????? | | #### ###?#??## # ??????????? | | ########?#??## # ??????????? | | ######??????## # ??????????? | | ##???#?#????##@w + ??????????? | | ###+#### ?????????? # # ??????????? | | # ## ?????????? # # ??????????? | | ? ????????????????? # # ??????????? | | ??????????????????? # g ##??????????? | | ###???????????????????? # ##??????????? | | ###???????????????????? + ##??????????? | | ???????????#??????